Workbook

Sheet 1нед
A1: ПРИМЕРНОЕ ДВУХНЕДЕЛЬНОЕ МЕНЮ ДЛЯ ОБУЧАЮЩИХСЯ В ОБЩЕОБРАЗОВАТЕЛЬНЫХ ОРГАНИЗАЦИЯХ С 1-4 КЛАССЫ ДЛЯ ГРУПП ПРОДЛЕННОГО ДНЯ
B2: Наименование блюд | G2: Выход | H2: Белки, г | I2: Жиры, г | J2: Углеводы, г | K2: Калорийность, ккал | L2: Витамин B1, мг | M2: Витамин С, мг | N2: Витамин А, мг | Q2: Витамин Е, мг | R2: Ca, мг | S2: P, мг | T2: Mg, мг | U2: Fe, мг
B3: 1-ая неделя
B4: 1 день (ПОНЕДЕЛЬНИК)
A5: 2008, Речь | B5: КОНДИТЕРСКИЕ ИЗДЕЛИЯ (ПЕЧЕНЬЕ) | G5: 40 | H5: 2.9 | I5: 3.7 | J5: 28.8 | K5: 161.7 | L5: 0 | M5: 0 | O5: 0 | Q5: 0 | R5: 10.4 | S5: 32.4 | T5: 7.2 | U5: 0.6
A6: 411/2015, Дели | B6: КИСЕЛЬ | G6: 200 | H6: 0.000 | I6: 0.000 | J6: 25.100 | K6: 221.7 | L6: 0 | M6: 0.000 | N6: 0 | R6: 11.700 | S6: 4.500 | T6: 2.000 | U6: 0.000
B7: Итого: | H7: =SUM(H5:H6) -> 2.900 | I7: 3.700 | J7: 53.900 | K7: 383.4 | L7: 0.010 | M7: 0.00 | N7: =SUM(N5:P6) -> 0.00 | Q7: =SUM(Q5:Q6) -> 0.000 | R7: =SUM(R5:R6) -> 22.100 | S7: =SUM(S5:S6) -> 36.900 | T7: =SUM(T5:T6) -> 9.2 | U7: =SUM(U5:U6) -> 0.600
B8: 2 день (ВТОРНИК)
A9: 2008, Речь | B9: КОНДИТЕРСКИЕ ИЗДЕЛИЯ (ПРЯНИКИ) | G9: 40 | H9: 2.4 | I9: 1.9 | J9: 30 | K9: 146.4 | L9: 0 | M9: 0 | O9: 0 | Q9: 0 | R9: 4.4 | S9: 20 | T9: 3.6 | U9: 0.3
A10: 349/2015, Дели | B10: КОМПОТ ИЗ СМЕСИ СУХОФРУКТОВ | G10: 200 | H10: 0 | I10: 0 | J10: 14.6 | K10: 58.1 | L10: 0 | M10: 0 | N10: 0 | Q10: 0 | R10: 8.4 | S10: 0 | T10: 1.8 | U10: 0
B11: Итого: | H11: =SUM(H5:H9) -> 8.20 | I11: =SUM(I5:I9) -> 9.300 | J11: =SUM(J5:J9) -> 137.800 | K11: =SUM(K5:K9) -> 913 | L11: 0.288 | M11: =SUM(M5:M9) -> 0.000 | N11: =SUM(N5:N9) -> 0.0 | Q11: =SUM(Q5:Q9) -> 0.000 | R11: =SUM(R5:R9) -> 48.600 | S11: =SUM(S5:S9) -> 93.80 | T11: =SUM(T5:T9) -> 22.000 | U11: =SUM(U5:U9) -> 1.500
B12: 3 день (СРЕДА)
A13: 1/2015,Дели | B13: БУТЕРБРОД С МАСЛОМ | G13: 40/7 | H13: 3.000 | I13: 6.000 | J13: 19.600 | K13: 144.3 | L13: 0.1 | M13: 0 | O13: 0.1 | Q13: 1.0 | R13: 9.1 | S13: 31.5 | T13: 11.9 | U13: 0.7
A14: № 376 Сбор.рец. На прод-ию для обуч. Во всех образ.учреж-Дели 2015 | B14: ЧАЙ С САХАРОМ | G14: 200/15 | H14: 0.530 | J14: 9.47 | K14: 40 | M14: 0.270 | N14: - | R14: 13.600 | S14: 22.130 | T14: 11.730 | U14: 0.100
B15: Итого: | H15: =SUM(H13:H14) -> 3.530 | I15: =SUM(I13:I14) -> 6.00 | J15: =SUM(J13:J14) -> 29.1 | K15: =SUM(K13:K14) -> 184 | L15: =SUM(L13:L14) -> 0.100 | M15: =SUM(M13:N14) -> 0.270 | N15: 21 | Q15: =SUM(Q13:Q14) -> 1.000 | R15: =SUM(R13:R14) -> 22.700 | S15: =SUM(S13:S14) -> 53.630 | T15: =SUM(T13:T14) -> 23.630 | U15: =SUM(U13:U14) -> 0.800
B16: 4 день (ЧЕТВЕРГ)
A17: 2008, Речь | B17: КОНДИТЕРСКИЕ ИЗДЕЛИЯ (ПЕЧЕНЬЕ) | G17: 40 | H17: 2.9 | I17: 3.7 | J17: 28.8 | K17: 161.7 | L17: 0 | M17: 0 | O17: 0 | Q17: 0 | R17: 10.4 | S17: 32.4 | T17: 7.2 | U17: 0.6
A18: № 376 Сбор.рец. На прод-ию для обуч. Во всех образ.учреж-Дели 2015 | B18: ЧАЙ С САХАРОМ | G18: 200/15 | H18: 0.530 | J18: 9.47 | K18: 40 | M18: 0.270 | N18: - | R18: 13.600 | S18: 22.130 | T18: 11.730 | U18: 0.100
B19: Итого: | H19: =SUM(H17:H18) -> 3.430 | I19: 3.700 | J19: 38.270 | K19: 201.7 | L19: 0.000 | M19: 0.27 | N19: =SUM(N17:O18) -> 0.00 | Q19: =SUM(Q17:Q18) -> 0.000 | R19: =SUM(R17:R18) -> 24.000 | S19: =SUM(S17:S18) -> 54.530 | T19: =SUM(T17:T18) -> 18.9 | U19: =SUM(U17:U18) -> 0.700
B20: 5 день (ПЯТНИЦА)
A21: 2008, Речь | B21: КОНДИТЕРСКИЕ ИЗДЕЛИЯ (ПРЯНИКИ) | G21: 40 | H21: 2.4 | I21: 1.9 | J21: 30 | K21: 146.4 | L21: 0 | M21: 0 | O21: 0 | Q21: 0 | R21: 4.4 | S21: 20 | T21: 3.6 | U21: 0.3
A22: 349/2015, Дели | B22: КОМПОТ ИЗ СМЕСИ СУХОФРУКТОВ | G22: 200 | H22: 0 | I22: 0 | J22: 14.6 | K22: 58.1 | L22: 0 | M22: 0 | N22: 0 | Q22: 0 | R22: 8.4 | S22: 0 | T22: 1.8 | U22: 0
B23: Итого: | H23: =SUM(H17:H21) -> 9.26 | I23: =SUM(I17:I21) -> 9.300 | J23: =SUM(J17:J21) -> 106.540 | K23: =SUM(K17:K21) -> 550 | L23: 0.008 | M23: =SUM(M17:M21) -> 0.540 | N23: =SUM(N17:N21) -> 0.0 | Q23: =SUM(Q17:Q21) -> 0.000 | R23: =SUM(R17:R21) -> 52.400 | S23: =SUM(S17:S21) -> 129.06 | T23: =SUM(T17:T21) -> 41.460 | U23: =SUM(U17:U21) -> 1.700

Sheet 2 нед
A1: ПРИМЕРНОЕ ДВУХНЕДЕЛЬНОЕ МЕНЮ ДЛЯ ОБУЧАЮЩИХСЯ В ОБЩЕОБРАЗОВАТЕЛЬНЫХ ОРГАНИЗАЦИЯХ С 1-4 КЛАССЫ ДЛЯ ГРУПП ПРОДЛЕННОГО ДНЯ
B2: Наименование блюд | G2: Выход | H2: Белки, г | I2: Жиры, г | J2: Углеводы, г | K2: Калорийность, ккал | L2: Витамин B1, мг | M2: Витамин С, мг | N2: Витамин А, мг | Q2: Витамин Е, мг | R2: Ca, мг | S2: P, мг | T2: Mg, мг | U2: Fe, мг
B3: 2-ая неделя
B4: 1 день (ПОНЕДЕЛЬНИК)
A5: 2008, Речь | B5: КОНДИТЕРСКИЕ ИЗДЕЛИЯ (ПЕЧЕНЬЕ) | G5: 40 | H5: 2.9 | I5: 3.7 | J5: 28.8 | K5: 161.7 | L5: 0 | M5: 0 | O5: 0 | Q5: 0 | R5: 10.4 | S5: 32.4 | T5: 7.2 | U5: 0.6
A6: 411/2015, Дели | B6: КИСЕЛЬ | G6: 200 | H6: 0.000 | I6: 0.000 | J6: 25.100 | K6: 221.7 | L6: 0 | M6: 0.000 | N6: 0 | R6: 11.700 | S6: 4.500 | T6: 2.000 | U6: 0.000
B7: Итого: | H7: =SUM(H5:H6) -> 2.900 | I7: 3.700 | J7: 53.900 | K7: 383.4 | L7: 0.010 | M7: 0.00 | N7: =SUM(N5:P6) -> 0.00 | Q7: =SUM(Q5:Q6) -> 0.000 | R7: =SUM(R5:R6) -> 22.100 | S7: =SUM(S5:S6) -> 36.900 | T7: =SUM(T5:T6) -> 9.2 | U7: =SUM(U5:U6) -> 0.600
B8: 2 день (ВТОРНИК)
A9: 2008, Речь | B9: КОНДИТЕРСКИЕ ИЗДЕЛИЯ (ПРЯНИКИ) | G9: 40 | H9: 2.4 | I9: 1.9 | J9: 30 | K9: 146.4 | L9: 0 | M9: 0 | O9: 0 | Q9: 0 | R9: 4.4 | S9: 20 | T9: 3.6 | U9: 0.3
A10: 349/2015, Дели | B10: КОМПОТ ИЗ СМЕСИ СУХОФРУКТОВ | G10: 200 | H10: 0 | I10: 0 | J10: 14.6 | K10: 58.1 | L10: 0 | M10: 0 | N10: 0 | Q10: 0 | R10: 8.4 | S10: 0 | T10: 1.8 | U10: 0
B11: Итого: | H11: =SUM(H5:H9) -> 8.20 | I11: =SUM(I5:I9) -> 9.300 | J11: =SUM(J5:J9) -> 137.800 | K11: =SUM(K5:K9) -> 913 | L11: 0.288 | M11: =SUM(M5:M9) -> 0.000 | N11: =SUM(N5:N9) -> 0.0 | Q11: =SUM(Q5:Q9) -> 0.000 | R11: =SUM(R5:R9) -> 48.600 | S11: =SUM(S5:S9) -> 93.80 | T11: =SUM(T5:T9) -> 22.000 | U11: =SUM(U5:U9) -> 1.500
B12: 3 день (СРЕДА)
A13: 1/2015,Дели | B13: БУТЕРБРОД С МАСЛОМ | G13: 40/7 | H13: 3.000 | I13: 6.000 | J13: 19.600 | K13: 144.3 | L13: 0.1 | M13: 0 | O13: 0.1 | Q13: 1.0 | R13: 9.1 | S13: 31.5 | T13: 11.9 | U13: 0.7
A14: № 376 Сбор.рец. На прод-ию для обуч. Во всех образ.учреж-Дели 2015 | B14: ЧАЙ С САХАРОМ | G14: 200/15 | H14: 0.530 | J14: 9.47 | K14: 40 | M14: 0.270 | N14: - | R14: 13.600 | S14: 22.130 | T14: 11.730 | U14: 0.100
B15: Итого: | H15: =SUM(H13:H14) -> 3.530 | I15: =SUM(I13:I14) -> 6.00 | J15: =SUM(J13:J14) -> 29.1 | K15: =SUM(K13:K14) -> 184 | L15: =SUM(L13:L14) -> 0.100 | M15: =SUM(M13:N14) -> 0.270 | N15: 21 | Q15: =SUM(Q13:Q14) -> 1.000 | R15: =SUM(R13:R14) -> 22.700 | S15: =SUM(S13:S14) -> 53.630 | T15: =SUM(T13:T14) -> 23.630 | U15: =SUM(U13:U14) -> 0.800
B16: 4 день (ЧЕТВЕРГ)
A17: 2008, Речь | B17: КОНДИТЕРСКИЕ ИЗДЕЛИЯ (ПЕЧЕНЬЕ) | G17: 40 | H17: 2.9 | I17: 3.7 | J17: 28.8 | K17: 161.7 | L17: 0 | M17: 0 | O17: 0 | Q17: 0 | R17: 10.4 | S17: 32.4 | T17: 7.2 | U17: 0.6
A18: № 376 Сбор.рец. На прод-ию для обуч. Во всех образ.учреж-Дели 2015 | B18: ЧАЙ С САХАРОМ | G18: 200/15 | H18: 0.530 | J18: 9.47 | K18: 40 | M18: 0.270 | N18: - | R18: 13.600 | S18: 22.130 | T18: 11.730 | U18: 0.100
B19: Итого: | H19: =SUM(H17:H18) -> 3.430 | I19: 3.700 | J19: 38.270 | K19: 201.7 | L19: 0.000 | M19: 0.27 | N19: =SUM(N17:O18) -> 0.00 | Q19: =SUM(Q17:Q18) -> 0.000 | R19: =SUM(R17:R18) -> 24.000 | S19: =SUM(S17:S18) -> 54.530 | T19: =SUM(T17:T18) -> 18.9 | U19: =SUM(U17:U18) -> 0.700
B20: 5 день (ПЯТНИЦА)
A21: 2008, Речь | B21: КОНДИТЕРСКИЕ ИЗДЕЛИЯ (ПРЯНИКИ) | G21: 40 | H21: 2.4 | I21: 1.9 | J21: 30 | K21: 146.4 | L21: 0 | M21: 0 | O21: 0 | Q21: 0 | R21: 4.4 | S21: 20 | T21: 3.6 | U21: 0.3
A22: 349/2015, Дели | B22: КОМПОТ ИЗ СМЕСИ СУХОФРУКТОВ | G22: 200 | H22: 0 | I22: 0 | J22: 14.6 | K22: 58.1 | L22: 0 | M22: 0 | N22: 0 | Q22: 0 | R22: 8.4 | S22: 0 | T22: 1.8 | U22: 0
B23: Итого: | H23: =SUM(H17:H21) -> 9.26 | I23: =SUM(I17:I21) -> 9.300 | J23: =SUM(J17:J21) -> 106.540 | K23: =SUM(K17:K21) -> 550 | L23: 0.008 | M23: =SUM(M17:M21) -> 0.540 | N23: =SUM(N17:N21) -> 0.0 | Q23: =SUM(Q17:Q21) -> 0.000 | R23: =SUM(R17:R21) -> 52.400 | S23: =SUM(S17:S21) -> 129.06 | T23: =SUM(T17:T21) -> 41.460 | U23: =SUM(U17:U21) -> 1.700
